[Event "Titled Tuesday Blitz February 21 Early 2023"]
[White "Erzhanov, Arman"]
[Black "Dauner, Benedikt"]
[WhiteFideId "4138821"]
[BlackFideId "16225899"]
[WhiteElo "2228"]
[BlackElo "2400"]
[Result "1-0"]
[Round "11"]
[TimeControl "180+2"]
[Date "2023.02.21"]
[WhiteClock "0:00:06"]
[BlackClock "0:00:03"]

1. e4 {[%clk 0:03:00]}  e6 {[%clk 0:02:31]} 2. b3 {[%clk 0:03:00]}  Qf6 {[%clk 0:02:27]} 3. d4 {[%clk 0:02:58]}  d5 {[%clk 0:02:23]} 4. e5 {[%clk 0:02:58]}  Qd8 {[%clk 0:02:22]} 5. Nf3 {[%clk 0:02:58]}  c5 {[%clk 0:02:21]} 6. c3 {[%clk 0:02:58]}  Nc6 {[%clk 0:02:21]} 7. Be2 {[%clk 0:02:54]}  Qb6 {[%clk 0:02:21]} 8. O-O {[%clk 0:02:53]}  Bd7 {[%clk 0:02:14]} 9. a3 {[%clk 0:02:47]}  Rc8 {[%clk 0:02:12]} 10. b4 {[%clk 0:02:47]}  cxd4 {[%clk 0:02:12]} 11. cxd4 {[%clk 0:02:48]}  Nge7 {[%clk 0:02:09]} 12. Bb2 {[%clk 0:02:42]}  Nf5 {[%clk 0:02:08]} 13. Kh1 {[%clk 0:02:33]}  Nce7 {[%clk 0:02:07]} 14. Nc3 {[%clk 0:02:30]}  Ng6 {[%clk 0:02:04]} 15. Rc1 {[%clk 0:02:24]}  Be7 {[%clk 0:01:59]} 16. Na4 {[%clk 0:02:19]}  Rxc1 {[%clk 0:01:39]} 17. Bxc1 {[%clk 0:02:19]}  Qc6 {[%clk 0:01:29]} 18. Nc5 {[%clk 0:02:14]}  Bxc5 {[%clk 0:01:17]} 19. bxc5 {[%clk 0:02:13]}  Qa4 {[%clk 0:01:16]} 20. Qd3 {[%clk 0:02:05]}  a6 {[%clk 0:01:12]} 21. Qb1 {[%clk 0:02:00]}  Bc6 {[%clk 0:00:52]} 22. Bb2 {[%clk 0:01:40]}  Nf4 {[%clk 0:00:51]} 23. Re1 {[%clk 0:01:31]}  Nxe2 {[%clk 0:00:47]} 24. Rxe2 {[%clk 0:01:31]}  O-O {[%clk 0:00:47]} 25. g4 {[%clk 0:01:26]}  Nh6 {[%clk 0:00:45]} 26. Ng5 {[%clk 0:01:24]}  g6 {[%clk 0:00:45]} 27. h3 {[%clk 0:01:23]}  Qb3 {[%clk 0:00:43]} 28. Re3 {[%clk 0:01:19]}  Qc4 {[%clk 0:00:39]} 29. Qd1 {[%clk 0:01:06]}  Kg7 {[%clk 0:00:37]} 30. Qf3 {[%clk 0:01:05]}  Ng8 {[%clk 0:00:36]} 31. Qd1 {[%clk 0:00:35]}  Bb5 {[%clk 0:00:33]} 32. Kg1 {[%clk 0:00:35]}  h6 {[%clk 0:00:32]} 33. Nf3 {[%clk 0:00:35]}  Qa4 {[%clk 0:00:31]} 34. Qc1 {[%clk 0:00:33]}  Rc8 {[%clk 0:00:29]} 35. Qd2 {[%clk 0:00:33]}  Be8 {[%clk 0:00:26]} 36. Bc1 {[%clk 0:00:34]}  Qb5 {[%clk 0:00:22]} 37. Nh2 {[%clk 0:00:33]}  b6 {[%clk 0:00:20]} 38. cxb6 {[%clk 0:00:20]}  Qxb6 {[%clk 0:00:21]} 39. h4 {[%clk 0:00:17]}  Qc6 {[%clk 0:00:20]} 40. Re1 {[%clk 0:00:16]}  Qc2 {[%clk 0:00:20]} 41. Qf4 {[%clk 0:00:16]}  Rc3 {[%clk 0:00:18]} 42. Nf3 {[%clk 0:00:15]}  Qb3 {[%clk 0:00:17]} 43. Kg2 {[%clk 0:00:14]}  Bb5 {[%clk 0:00:14]} 44. h5 {[%clk 0:00:14]}  Bd3 {[%clk 0:00:14]} 45. hxg6 {[%clk 0:00:13]}  fxg6 {[%clk 0:00:14]} 46. Kg1 {[%clk 0:00:11]}  Be4 {[%clk 0:00:13]} 47. Nh4 {[%clk 0:00:10]}  Rh3 {[%clk 0:00:12]} 48. Ng2 {[%clk 0:00:08]}  Qf3 {[%clk 0:00:05]} 49. Qxf3 {[%clk 0:00:08]}  Bxf3 {[%clk 0:00:06]} 50. Be3 {[%clk 0:00:07]}  Ne7 {[%clk 0:00:05]} 51. Rb1 {[%clk 0:00:07]}  Bxg4 {[%clk 0:00:04]} 52. Rb7 {[%clk 0:00:06]}  Kf7 {[%clk 0:00:05]} 53. Nf4 {[%clk 0:00:05]}  Rh4 {[%clk 0:00:03]} 54. Ra7 {[%clk 0:00:04]}  Bf3 {[%clk 0:00:03]} 55. Ng2 {[%clk 0:00:03]}  Rg4 {[%clk 0:00:03]} 56. Kf1 {[%clk 0:00:03]}  Bxg2+ {[%clk 0:00:04]} 57. Ke2 {[%clk 0:00:03]}  Be4 {[%clk 0:00:05]} 58. f3 {[%clk 0:00:02]}  Rh4 {[%clk 0:00:05]} 59. Bf2 {[%clk 0:00:03]}  Rh2 {[%clk 0:00:04]} 60. fxe4 {[%clk 0:00:03]}  dxe4 {[%clk 0:00:05]} 61. Ke3 {[%clk 0:00:04]}  g5 {[%clk 0:00:05]} 62. Bg3 {[%clk 0:00:04]}  Rh3 {[%clk 0:00:05]} 63. Kf2 {[%clk 0:00:04]}  Ke8 {[%clk 0:00:05]} 64. Kg2 {[%clk 0:00:04]}  g4 {[%clk 0:00:05]} 65. Ra8+ {[%clk 0:00:02]}  Kd7 {[%clk 0:00:05]} 66. Ra7+ {[%clk 0:00:03]}  Kd8 {[%clk 0:00:06]} 67. Rxa6 {[%clk 0:00:04]}  Nf5 {[%clk 0:00:05]} 68. Ra8+ {[%clk 0:00:05]}  Kd7 {[%clk 0:00:05]} 69. Ra7+ {[%clk 0:00:06]}  Kc6 {[%clk 0:00:05]} 70. Bf4 {[%clk 0:00:07]}  Nxd4 {[%clk 0:00:04]} 71. Ra6+ {[%clk 0:00:07]}  Kd5 {[%clk 0:00:05]} 72. Rd6+ {[%clk 0:00:07]}  Kc4 {[%clk 0:00:05]} 73. a4 {[%clk 0:00:07]}  Kd3 {[%clk 0:00:05]} 74. a5 {[%clk 0:00:08]}  Ke2 {[%clk 0:00:02]} 75. a6 {[%clk 0:00:07]}  Rf3 {[%clk 0:00:03]} 76. a7 {[%clk 0:00:06]}  Rf2+ {[%clk 0:00:03]} 77. Kg3 {[%clk 0:00:06]}  Nf5+ {[%clk 0:00:03]} 78. Kxg4 {[%clk 0:00:06]}  Nxd6 {[%clk 0:00:04]} 79. exd6 {[%clk 0:00:06]}  e3 {[%clk 0:00:04]} 80. a8=Q {[%clk 0:00:05]}  Rg2+ {[%clk 0:00:05]} 81. Kh3 {[%clk 0:00:05]}  Rg6 {[%clk 0:00:04]} 82. Qa2+ {[%clk 0:00:05]}  Kf3 {[%clk 0:00:04]} 83. Bxe3 {[%clk 0:00:05]}  Kxe3 {[%clk 0:00:03]} 84. d7 {[%clk 0:00:06]}  Kf3 {[%clk 0:00:02]} 85. d8=Q {[%clk 0:00:06]}  Rg5 {[%clk 0:00:03]} 86. Qd3+ {[%clk 0:00:06]}  Kf4 {[%clk 0:00:03]} 87. Qf2+ {[%clk 0:00:06]}  Ke5 {[%clk 0:00:03]} 88. Qfd4# {[%clk 0:00:06]} 1-0


[Site "https://www.chess.com"]

[Event "Titled Tuesday Blitz February 21 Early 2023"]
[White "rikchessmx"]
[Black "Degenbaev, Aziz"]
[BlackFideId "13802640"]
[WhiteElo "2351"]
[BlackElo "2203"]
[Result "0-1"]
[Round "11"]
[TimeControl "180+2"]
[Date "2023.02.21"]
[WhiteClock "0:01:22"]
[BlackClock "0:00:31"]

1. e4 {[%clk 0:02:52]}  c5 {[%clk 0:02:58]} 2. Nf3 {[%clk 0:02:51]}  d6 {[%clk 0:02:58]} 3. d4 {[%clk 0:02:52]}  cxd4 {[%clk 0:02:59]} 4. Nxd4 {[%clk 0:02:53]}  Nf6 {[%clk 0:03:00]} 5. Nc3 {[%clk 0:02:53]}  a6 {[%clk 0:03:00]} 6. f4 {[%clk 0:02:54]}  e5 {[%clk 0:02:59]} 7. Nf3 {[%clk 0:02:54]}  Nbd7 {[%clk 0:02:51]} 8. Bd3 {[%clk 0:02:53]}  b5 {[%clk 0:02:48]} 9. a3 {[%clk 0:02:39]}  Be7 {[%clk 0:02:42]} 10. O-O {[%clk 0:02:38]}  O-O {[%clk 0:02:42]} 11. Qe1 {[%clk 0:02:38]}  Bb7 {[%clk 0:02:42]} 12. fxe5 {[%clk 0:02:39]}  dxe5 {[%clk 0:02:17]} 13. Kh1 {[%clk 0:02:21]}  Re8 {[%clk 0:02:06]} 14. Nh4 {[%clk 0:02:12]}  Nxe4 {[%clk 0:01:42]} 15. Nf5 {[%clk 0:02:12]}  Nd6 {[%clk 0:01:40]} 16. Nxg7 {[%clk 0:01:55]}  Kxg7 {[%clk 0:01:31]} 17. Qg3+ {[%clk 0:01:51]}  Kh8 {[%clk 0:01:27]} 18. Qh3 {[%clk 0:01:38]}  e4 {[%clk 0:01:21]} 19. Nxe4 {[%clk 0:01:38]}  Bxe4 {[%clk 0:00:51]} 20. Bxe4 {[%clk 0:01:34]}  Nxe4 {[%clk 0:00:51]} 21. Rxf7 {[%clk 0:01:35]}  Ndf6 {[%clk 0:00:37]} 22. Bh6 {[%clk 0:01:33]}  Qd5 {[%clk 0:00:33]} 23. Bg7+ {[%clk 0:01:26]}  Kg8 {[%clk 0:00:33]} 24. Rxf6 {[%clk 0:01:25]}  Bxf6 {[%clk 0:00:31]} 25. Bxf6 {[%clk 0:01:22]}  Nf2+ {[%clk 0:00:31]} 0-1


[Site "https://www.chess.com"]

[Event "Titled Tuesday Blitz February 21 Early 2023"]
[White "Zaksaite, Salomeja"]
[Black "Meera, Sai"]
[WhiteFideId "12801496"]
[BlackFideId "5004357"]
[WhiteElo "2283"]
[BlackElo "2064"]
[Result "0-1"]
[Round "11"]
[TimeControl "180+2"]
[Date "2023.02.21"]
[WhiteClock "0:00:01"]
[BlackClock "0:01:03"]

1. d4 {[%clk 0:03:00]}  Nf6 {[%clk 0:02:58]} 2. Nc3 {[%clk 0:02:57]}  d5 {[%clk 0:02:58]} 3. Bf4 {[%clk 0:02:55]}  g6 {[%clk 0:02:58]} 4. e3 {[%clk 0:02:54]}  Bg7 {[%clk 0:02:57]} 5. h4 {[%clk 0:02:53]}  h5 {[%clk 0:02:57]} 6. Nf3 {[%clk 0:02:47]}  O-O {[%clk 0:02:58]} 7. Bd3 {[%clk 0:02:47]}  c5 {[%clk 0:02:56]} 8. dxc5 {[%clk 0:02:44]}  Nbd7 {[%clk 0:02:48]} 9. Na4 {[%clk 0:02:40]}  Ne4 {[%clk 0:02:42]} 10. Bxe4 {[%clk 0:02:25]}  dxe4 {[%clk 0:02:42]} 11. Ng5 {[%clk 0:02:24]}  Qa5+ {[%clk 0:02:30]} 12. c3 {[%clk 0:02:23]}  Nxc5 {[%clk 0:02:30]} 13. Nxc5 {[%clk 0:02:19]}  Qxc5 {[%clk 0:02:30]} 14. Nxe4 {[%clk 0:02:18]}  Qb5 {[%clk 0:02:28]} 15. Qe2 {[%clk 0:02:14]}  Qc6 {[%clk 0:02:10]} 16. f3 {[%clk 0:01:59]}  Bf5 {[%clk 0:02:08]} 17. Ng3 {[%clk 0:01:58]}  Be6 {[%clk 0:02:00]} 18. Kf2 {[%clk 0:01:56]}  Bc4 {[%clk 0:02:00]} 19. Qc2 {[%clk 0:01:54]}  e5 {[%clk 0:01:57]} 20. Bg5 {[%clk 0:01:50]}  f6 {[%clk 0:01:52]} 21. Qxg6 {[%clk 0:01:48]}  fxg5 {[%clk 0:01:51]} 22. Qxc6 {[%clk 0:01:18]}  bxc6 {[%clk 0:01:50]} 23. hxg5 {[%clk 0:01:19]}  Rad8 {[%clk 0:01:46]} 24. b3 {[%clk 0:00:38]}  Rd2+ {[%clk 0:01:38]} 25. Kg1 {[%clk 0:00:29]}  Bd3 {[%clk 0:01:30]} 26. Rxh5 {[%clk 0:00:25]}  e4 {[%clk 0:01:24]} 27. f4 {[%clk 0:00:22]}  Bxc3 {[%clk 0:01:23]} 28. Rc1 {[%clk 0:00:21]}  Bc2 {[%clk 0:01:21]} 29. f5 {[%clk 0:00:09]}  Bb2 {[%clk 0:01:16]} 30. Rf1 {[%clk 0:00:08]}  Be5 {[%clk 0:01:15]} 31. Rh3 {[%clk 0:00:05]}  Bd3 {[%clk 0:01:12]} 32. Re1 {[%clk 0:00:04]}  Bxg3 {[%clk 0:01:11]} 33. Rxg3 {[%clk 0:00:04]}  Rxf5 {[%clk 0:01:12]} 34. g6 {[%clk 0:00:03]}  Kg7 {[%clk 0:01:11]} 35. Rc1 {[%clk 0:00:03]}  Rf6 {[%clk 0:01:11]} 36. Rc5 {[%clk 0:00:02]}  Rxg6 {[%clk 0:01:07]} 37. Rxg6+ {[%clk 0:00:02]}  Kxg6 {[%clk 0:01:08]} 38. Rxc6+ {[%clk 0:00:02]}  Kf5 {[%clk 0:01:08]} 39. Rc7 {[%clk 0:00:02]}  Rxa2 {[%clk 0:01:08]} 40. Kh2 {[%clk 0:00:01]}  a5 {[%clk 0:01:05]} 41. Kg3 {[%clk 0:00:02]}  Re2 {[%clk 0:01:05]} 42. Rc5+ {[%clk 0:00:03]}  Kf6 {[%clk 0:01:03]} 43. Kf4 {[%clk 0:00:02]}  Rxg2 {[%clk 0:01:03]} 44. Rxa5 {[%clk 0:00:02]}  Rf2+ {[%clk 0:01:03]} 45. Kg4 {[%clk 0:00:01]}  Rf3 {[%clk 0:01:03]} 0-1


[Site "https://www.chess.com"]

[Event "Titled Tuesday Blitz February 21 Early 2023"]
[White "Mayaud, Raphael"]
[Black "gshwbedhkhd"]
[WhiteFideId "627151"]
[WhiteElo "2201"]
[BlackElo "2556"]
[Result "0-1"]
[Round "11"]
[TimeControl "180+2"]
[Date "2023.02.21"]
[WhiteClock "0:00:15"]
[BlackClock "0:00:38"]

1. d4 {[%clk 0:02:57]}  f5 {[%clk 0:02:58]} 2. g3 {[%clk 0:02:57]}  Nf6 {[%clk 0:02:59]} 3. Bg2 {[%clk 0:02:58]}  g6 {[%clk 0:02:59]} 4. c4 {[%clk 0:02:55]}  Bg7 {[%clk 0:03:00]} 5. Nh3 {[%clk 0:02:55]}  d6 {[%clk 0:02:58]} 6. d5 {[%clk 0:02:54]}  O-O {[%clk 0:02:57]} 7. Nf4 {[%clk 0:02:54]}  c6 {[%clk 0:02:56]} 8. Nc3 {[%clk 0:02:53]}  Bd7 {[%clk 0:02:54]} 9. O-O {[%clk 0:02:49]}  Qe8 {[%clk 0:02:54]} 10. Qc2 {[%clk 0:02:49]}  g5 {[%clk 0:02:49]} 11. Nd3 {[%clk 0:02:35]}  Na6 {[%clk 0:02:42]} 12. b3 {[%clk 0:02:29]}  e5 {[%clk 0:02:29]} 13. dxe6 {[%clk 0:02:29]}  Bxe6 {[%clk 0:02:28]} 14. Bxg5 {[%clk 0:02:16]}  Ng4 {[%clk 0:02:24]} 15. Rad1 {[%clk 0:01:59]}  Bf6 {[%clk 0:02:07]} 16. Bxf6 {[%clk 0:01:55]}  Rxf6 {[%clk 0:02:08]} 17. Nf4 {[%clk 0:01:54]}  Rh6 {[%clk 0:02:06]} 18. h3 {[%clk 0:01:48]}  Ne5 {[%clk 0:02:04]} 19. e4 {[%clk 0:01:42]}  fxe4 {[%clk 0:02:02]} 20. Nxe4 {[%clk 0:01:36]}  Rd8 {[%clk 0:01:55]} 21. Rfe1 {[%clk 0:01:26]}  Bf5 {[%clk 0:01:37]} 22. Qb2 {[%clk 0:01:19]}  Nb4 {[%clk 0:01:30]} 23. Nxd6 {[%clk 0:01:10]}  Rhxd6 {[%clk 0:01:27]} 24. Rxd6 {[%clk 0:01:10]}  Rxd6 {[%clk 0:01:28]} 25. Qxe5 {[%clk 0:01:08]}  Qxe5 {[%clk 0:01:25]} 26. Rxe5 {[%clk 0:01:09]}  Bc2 {[%clk 0:01:24]} 27. Re7 {[%clk 0:00:59]}  Nxa2 {[%clk 0:01:11]} 28. Rxb7 {[%clk 0:00:57]}  a5 {[%clk 0:01:07]} 29. Bf3 {[%clk 0:00:48]}  Nb4 {[%clk 0:01:07]} 30. Ra7 {[%clk 0:00:37]}  Bxb3 {[%clk 0:01:04]} 31. Rxa5 {[%clk 0:00:37]}  Bxc4 {[%clk 0:01:04]} 32. h4 {[%clk 0:00:32]}  Bb5 {[%clk 0:00:58]} 33. h5 {[%clk 0:00:31]}  Nc2 {[%clk 0:00:58]} 34. g4 {[%clk 0:00:30]}  Rf6 {[%clk 0:00:55]} 35. Ra8+ {[%clk 0:00:22]}  Kg7 {[%clk 0:00:51]} 36. Ra7+ {[%clk 0:00:22]}  Kh6 {[%clk 0:00:51]} 37. g5+ {[%clk 0:00:21]}  Kxg5 {[%clk 0:00:51]} 38. Nh3+ {[%clk 0:00:21]}  Kh4 {[%clk 0:00:50]} 39. Kg2 {[%clk 0:00:22]}  Ne1+ {[%clk 0:00:45]} 40. Kh1 {[%clk 0:00:18]}  Rxf3 {[%clk 0:00:43]} 41. Ng1 {[%clk 0:00:17]}  Rxf2 {[%clk 0:00:40]} 42. Rxh7 {[%clk 0:00:15]}  Bc4 {[%clk 0:00:38]} 0-1


[Site "https://www.chess.com"]

[Event "Titled Tuesday Blitz February 21 Early 2023"]
[White "Novikov, Evgenij"]
[Black "Szyszylo, Rafal"]
[WhiteFideId "4125380"]
[BlackFideId "1109626"]
[WhiteElo "2276"]
[BlackElo "2091"]
[Result "1-0"]
[Round "11"]
[TimeControl "180+2"]
[Date "2023.02.21"]
[WhiteClock "0:01:37"]
[BlackClock "0:01:08"]

1. e4 {[%clk 0:03:00]}  g6 {[%clk 0:03:00]} 2. f4 {[%clk 0:02:57]}  d6 {[%clk 0:03:00]} 3. Nf3 {[%clk 0:02:58]}  Nf6 {[%clk 0:02:58]} 4. e5 {[%clk 0:02:55]}  dxe5 {[%clk 0:02:51]} 5. fxe5 {[%clk 0:02:56]}  Nd5 {[%clk 0:02:50]} 6. c4 {[%clk 0:02:51]}  Nf4 {[%clk 0:02:41]} 7. d4 {[%clk 0:02:51]}  Ne6 {[%clk 0:02:40]} 8. d5 {[%clk 0:02:45]}  Ng7 {[%clk 0:02:40]} 9. Nc3 {[%clk 0:02:40]}  c6 {[%clk 0:02:40]} 10. Be3 {[%clk 0:02:36]}  Nf5 {[%clk 0:02:35]} 11. Bf2 {[%clk 0:02:36]}  h5 {[%clk 0:02:33]} 12. Bd3 {[%clk 0:02:28]}  Bh6 {[%clk 0:02:31]} 13. Qe2 {[%clk 0:02:26]}  O-O {[%clk 0:02:29]} 14. h3 {[%clk 0:02:19]}  cxd5 {[%clk 0:02:19]} 15. cxd5 {[%clk 0:02:20]}  Bg7 {[%clk 0:01:41]} 16. g4 {[%clk 0:02:18]}  hxg4 {[%clk 0:01:41]} 17. hxg4 {[%clk 0:02:19]}  Nh6 {[%clk 0:01:42]} 18. g5 {[%clk 0:02:07]}  Ng4 {[%clk 0:01:39]} 19. O-O-O {[%clk 0:01:46]}  Nxf2 {[%clk 0:01:29]} 20. Qxf2 {[%clk 0:01:47]}  Re8 {[%clk 0:01:18]} 21. e6 {[%clk 0:01:41]}  Qb6 {[%clk 0:01:07]} 22. exf7+ {[%clk 0:01:36]}  Kxf7 {[%clk 0:01:08]} 23. Ne5+ {[%clk 0:01:37]} 1-0


[Site "https://www.chess.com"]

[Event "Titled Tuesday Blitz February 21 Early 2023"]
[White "Petrova, Irina"]
[Black "Sanchez, Robert"]
[WhiteFideId "14124122"]
[BlackFideId "2034360"]
[WhiteElo "2108"]
[BlackElo "1966"]
[Result "0-1"]
[Round "11"]
[TimeControl "180+2"]
[Date "2023.02.21"]
[WhiteClock "0:00:14"]
[BlackClock "0:01:04"]

1. e4 {[%clk 0:03:00]}  d5 {[%clk 0:02:56]} 2. exd5 {[%clk 0:03:00]}  Qxd5 {[%clk 0:02:57]} 3. Nc3 {[%clk 0:03:01]}  Qe6+ {[%clk 0:02:57]} 4. Be2 {[%clk 0:02:59]}  Qg6 {[%clk 0:02:57]} 5. Bf3 {[%clk 0:02:58]}  Nc6 {[%clk 0:02:57]} 6. Nge2 {[%clk 0:02:53]}  e5 {[%clk 0:02:57]} 7. d3 {[%clk 0:02:53]}  Bd7 {[%clk 0:02:57]} 8. O-O {[%clk 0:02:47]}  O-O-O {[%clk 0:02:56]} 9. Ng3 {[%clk 0:02:47]}  f5 {[%clk 0:02:53]} 10. Bxc6 {[%clk 0:02:23]}  Qxc6 {[%clk 0:02:44]} 11. f4 {[%clk 0:02:24]}  Bc5+ {[%clk 0:02:41]} 12. Kh1 {[%clk 0:02:24]}  Nf6 {[%clk 0:02:31]} 13. fxe5 {[%clk 0:02:18]}  Ng4 {[%clk 0:02:31]} 14. Bg5 {[%clk 0:02:18]}  Nf2+ {[%clk 0:02:17]} 15. Rxf2 {[%clk 0:02:18]}  Bxf2 {[%clk 0:02:17]} 16. Bxd8 {[%clk 0:02:18]}  Bxg3 {[%clk 0:02:15]} 17. Bxc7 {[%clk 0:02:01]}  Qxc7 {[%clk 0:02:10]} 18. hxg3 {[%clk 0:02:01]}  Qxe5 {[%clk 0:02:08]} 19. Qf3 {[%clk 0:02:00]}  g5 {[%clk 0:02:05]} 20. Qf2 {[%clk 0:01:53]}  h5 {[%clk 0:01:59]} 21. Re1 {[%clk 0:01:50]}  Qf6 {[%clk 0:01:51]} 22. Qxa7 {[%clk 0:01:45]}  h4 {[%clk 0:01:51]} 23. g4 {[%clk 0:01:29]}  Bc6 {[%clk 0:01:45]} 24. Qa8+ {[%clk 0:00:59]}  Kd7 {[%clk 0:01:35]} 25. Qa5 {[%clk 0:00:52]}  h3 {[%clk 0:01:35]} 26. Nd5 {[%clk 0:00:46]}  hxg2+ {[%clk 0:01:28]} 27. Kxg2 {[%clk 0:00:47]}  Qd6 {[%clk 0:01:25]} 28. Re7+ {[%clk 0:00:41]}  Qxe7 {[%clk 0:01:23]} 29. Qc7+ {[%clk 0:00:41]}  Ke6 {[%clk 0:01:18]} 30. Qxe7+ {[%clk 0:00:39]}  Kxd5 {[%clk 0:01:18]} 31. gxf5 {[%clk 0:00:32]}  Kd4+ {[%clk 0:01:16]} 32. Kg3 {[%clk 0:00:31]}  Rh1 {[%clk 0:01:15]} 33. Qd6+ {[%clk 0:00:30]}  Ke3 {[%clk 0:01:15]} 34. Qe5+ {[%clk 0:00:29]}  Kd2 {[%clk 0:01:14]} 35. f6 {[%clk 0:00:28]}  Rf1 {[%clk 0:01:04]} 36. Qxg5+ {[%clk 0:00:25]}  Kxc2 {[%clk 0:01:04]} 37. Qg6 {[%clk 0:00:18]}  Rg1+ {[%clk 0:01:03]} 38. Kf2 {[%clk 0:00:14]}  Rxg6 {[%clk 0:01:04]} 39. f7 {[%clk 0:00:14]}  Rf6+ {[%clk 0:01:04]} 0-1


[Site "https://www.chess.com"]

[Event "Titled Tuesday Blitz February 21 Early 2023"]
[White "Melikhov, Evgeny V."]
[Black "Delorme, Axel"]
[WhiteFideId "4122046"]
[BlackFideId "632023"]
[WhiteElo "2269"]
[BlackElo "2483"]
[Result "0-1"]
[Round "11"]
[TimeControl "180+2"]
[Date "2023.02.21"]
[WhiteClock "0:00:07"]
[BlackClock "0:00:12"]

1. d4 {[%clk 0:03:00]}  d5 {[%clk 0:03:00]} 2. c4 {[%clk 0:03:00]}  e6 {[%clk 0:03:00]} 3. Nc3 {[%clk 0:03:01]}  c5 {[%clk 0:03:00]} 4. cxd5 {[%clk 0:03:00]}  exd5 {[%clk 0:03:01]} 5. Nf3 {[%clk 0:02:59]}  Nc6 {[%clk 0:03:01]} 6. g3 {[%clk 0:02:58]}  Nf6 {[%clk 0:03:01]} 7. Bg2 {[%clk 0:02:58]}  cxd4 {[%clk 0:03:02]} 8. Nxd4 {[%clk 0:02:58]}  Bc5 {[%clk 0:03:02]} 9. Nxc6 {[%clk 0:02:58]}  bxc6 {[%clk 0:03:02]} 10. O-O {[%clk 0:02:57]}  O-O {[%clk 0:03:01]} 11. b3 {[%clk 0:02:42]}  Re8 {[%clk 0:02:58]} 12. e3 {[%clk 0:02:29]}  Bg4 {[%clk 0:02:46]} 13. Qc2 {[%clk 0:02:27]}  Rc8 {[%clk 0:02:45]} 14. Na4 {[%clk 0:02:26]}  Bb6 {[%clk 0:02:35]} 15. Ba3 {[%clk 0:02:18]}  Qd7 {[%clk 0:02:08]} 16. Bc5 {[%clk 0:02:13]}  Rb8 {[%clk 0:01:51]} 17. Rac1 {[%clk 0:02:08]}  Rec8 {[%clk 0:01:47]} 18. Nxb6 {[%clk 0:01:44]}  axb6 {[%clk 0:01:46]} 19. Bd4 {[%clk 0:01:45]}  Qe6 {[%clk 0:01:42]} 20. Bb2 {[%clk 0:01:41]}  Nd7 {[%clk 0:01:31]} 21. Qc3 {[%clk 0:01:38]}  f6 {[%clk 0:01:31]} 22. Qd4 {[%clk 0:01:33]}  Bh3 {[%clk 0:01:26]} 23. Rfd1 {[%clk 0:01:27]}  Ne5 {[%clk 0:01:20]} 24. Qf4 {[%clk 0:01:16]}  Bxg2 {[%clk 0:01:16]} 25. Kxg2 {[%clk 0:01:15]}  Rd8 {[%clk 0:01:01]} 26. a4 {[%clk 0:01:05]}  c5 {[%clk 0:00:59]} 27. a5 {[%clk 0:00:50]}  c4 {[%clk 0:00:42]} 28. bxc4 {[%clk 0:00:41]}  Nxc4 {[%clk 0:00:43]} 29. Bd4 {[%clk 0:00:19]}  bxa5 {[%clk 0:00:40]} 30. h4 {[%clk 0:00:18]}  a4 {[%clk 0:00:39]} 31. h5 {[%clk 0:00:17]}  h6 {[%clk 0:00:37]} 32. Qf3 {[%clk 0:00:15]}  a3 {[%clk 0:00:35]} 33. Ba1 {[%clk 0:00:13]}  Ne5 {[%clk 0:00:27]} 34. Qe2 {[%clk 0:00:12]}  Qf5 {[%clk 0:00:22]} 35. Bd4 {[%clk 0:00:09]}  Qe4+ {[%clk 0:00:16]} 36. Kg1 {[%clk 0:00:07]}  Nf3+ {[%clk 0:00:16]} 37. Kf1 {[%clk 0:00:07]}  Nxd4 {[%clk 0:00:12]} 38. Rxd4 {[%clk 0:00:07]}  Qh1# {[%clk 0:00:12]} 0-1


[Site "https://www.chess.com"]

[Event "Titled Tuesday Blitz February 21 Early 2023"]
[White "Torres Boch, Jose Francisco"]
[Black "QuiesPrecatio"]
[WhiteFideId "2278383"]
[WhiteElo "2180"]
[BlackElo "2417"]
[Result "1-0"]
[Round "11"]
[TimeControl "180+2"]
[Date "2023.02.21"]
[WhiteClock "0:00:51"]
[BlackClock "0:00:59"]

1. e4 {[%clk 0:03:00]}  e5 {[%clk 0:02:55]} 2. Nf3 {[%clk 0:03:01]}  Nc6 {[%clk 0:02:55]} 3. Bb5 {[%clk 0:03:01]}  Nf6 {[%clk 0:02:54]} 4. d3 {[%clk 0:03:01]}  d6 {[%clk 0:02:48]} 5. O-O {[%clk 0:02:56]}  a6 {[%clk 0:02:49]} 6. Bxc6+ {[%clk 0:02:55]}  bxc6 {[%clk 0:02:49]} 7. d4 {[%clk 0:02:56]}  exd4 {[%clk 0:02:49]} 8. Qxd4 {[%clk 0:02:54]}  c5 {[%clk 0:02:48]} 9. Qc4 {[%clk 0:02:49]}  Be6 {[%clk 0:02:48]} 10. Qe2 {[%clk 0:02:48]}  Nd7 {[%clk 0:02:46]} 11. Nc3 {[%clk 0:02:47]}  Be7 {[%clk 0:02:45]} 12. b3 {[%clk 0:02:43]}  Bf6 {[%clk 0:02:44]} 13. Bb2 {[%clk 0:02:43]}  O-O {[%clk 0:02:44]} 14. Na4 {[%clk 0:02:43]}  Bxb2 {[%clk 0:02:44]} 15. Nxb2 {[%clk 0:02:44]}  Qf6 {[%clk 0:02:41]} 16. Nc4 {[%clk 0:02:39]}  Rfe8 {[%clk 0:02:36]} 17. h3 {[%clk 0:02:33]}  Qf4 {[%clk 0:02:29]} 18. Rfe1 {[%clk 0:02:25]}  Bxc4 {[%clk 0:02:14]} 19. Qxc4 {[%clk 0:02:25]}  Re6 {[%clk 0:02:15]} 20. a4 {[%clk 0:01:59]}  Rg6 {[%clk 0:02:12]} 21. Kf1 {[%clk 0:01:57]}  Rf6 {[%clk 0:01:48]} 22. Re2 {[%clk 0:01:57]}  Nb6 {[%clk 0:01:36]} 23. Qc3 {[%clk 0:01:50]}  Re6 {[%clk 0:01:34]} 24. a5 {[%clk 0:01:36]}  Nd7 {[%clk 0:01:31]} 25. Rae1 {[%clk 0:01:32]}  Ne5 {[%clk 0:01:29]} 26. Nxe5 {[%clk 0:01:31]}  Qxe5 {[%clk 0:01:29]} 27. Qxe5 {[%clk 0:01:30]}  Rxe5 {[%clk 0:01:27]} 28. f4 {[%clk 0:01:29]}  Re6 {[%clk 0:01:27]} 29. g4 {[%clk 0:01:22]}  f6 {[%clk 0:01:24]} 30. Kf2 {[%clk 0:01:21]}  Rae8 {[%clk 0:01:23]} 31. Kf3 {[%clk 0:01:21]}  c6 {[%clk 0:01:22]} 32. h4 {[%clk 0:01:07]}  Kf7 {[%clk 0:01:22]} 33. h5 {[%clk 0:01:07]}  Rb8 {[%clk 0:01:22]} 34. Rd1 {[%clk 0:01:06]}  Rb4 {[%clk 0:01:20]} 35. f5 {[%clk 0:01:02]}  Re7 {[%clk 0:01:13]} 36. Rxd6 {[%clk 0:01:02]}  c4 {[%clk 0:01:09]} 37. Re3 {[%clk 0:00:52]}  Reb7 {[%clk 0:01:04]} 38. Rxc6 {[%clk 0:00:51]}  cxb3 {[%clk 0:01:04]} 39. cxb3 {[%clk 0:00:51]}  Rxb3 {[%clk 0:01:04]} 40. Rxa6 {[%clk 0:00:50]}  Rxe3+ {[%clk 0:01:02]} 41. Kxe3 {[%clk 0:00:50]}  Rb3+ {[%clk 0:01:03]} 42. Kf4 {[%clk 0:00:50]}  Rb7 {[%clk 0:00:59]} 43. Rb6 {[%clk 0:00:50]}  Ra7 {[%clk 0:00:59]} 44. a6 {[%clk 0:00:51]} 1-0


[Site "https://www.chess.com"]